Workbook

Sheet Cover page
E10: License application for a new
E11: finance company
C21: Proposed company name
C28: Applicant ID Number in SAMA (filled in by the responsible officer at SAMA after receiving the application)

Sheet Application checklist
B7: License Application for a New Finance Company
B8: Instructions
B9: 1- The license application shall be provided by the company's founding shareholders or their representative under an authenticated authorization, attach a copy of authenticated authorization.
B11: 2- A hardcopy of the forms and documents in the below checklist is to be submitted with a CD or USB that has an identical softcopy of the forms and documents according to the checklist.
B13: 3- The license application set by SAMA shall not be amended in any way.
B14: 4- If an extra space is required to answer any question, then attach any answer to the hardcopy of the Form and specify the questions text.
B15: 4- If an extra space is required to answer any question, then attach any answer to the hardcopy of the Form and specify the questions text.
B17: 4- If an extra space is required to answer any question, then attach any answer to the hardcopy of the Form and specify the questions text.
B18: 5- Words and phrases, wherever they appear in this Form, shall have the corresponding meanings in Article 1 of the Law on the Supervision of Finance Companies and Article 1 of the Implementing Regulations of the Law on the Supervision of Finance Companies, unless the context states otherwise. The term "Applicant" refers to the founding shareholders of the Company for which this application in submitted, and the term "Company" refers to the finance company that will be established.
B19: 6- The applicant must ensure that the information provided in this license application is correct, accurate and complete and that the application does not contain any false, incorrect or misleading or inaccurate or incomplete information, as providing SAMA with false information or not disclosing any material information that should be disclosed for the purposes of the licensing is considered a violation of the provisions of the Law on Supervision of Finance Companies and might result in application rejection or cancellation of license based on Article (7) of the Law on Supervision of Finance Companies.
A20: Checklist The following list indicates the forms and documents that must be included in the license application for a new financing companies:
B22: Attachment number | C22: Attachments | E22: Notes
A23: FALSE | B23: 1 | C23: License application from | E23: A hardcopy and an identical softcopy of completed license application form as set by SAMA, in accordance with the sections identified in the application.
E24: 1 General details
E25: 2 Business plan details
E26: 3 Acknowledgement
E27: 4 Fit and proper status
E28: 5 List of attachments
A29: FALSE | B29: =B23+1 -> 2 | C29: Draft articles and memorandum of association | E29: Copies of the draft memorandum of incorporation and articles of association as per the form set by SAMA.
A30: FALSE | B30: =B29+1 -> 3 | C30: Organizational structure | E30: An organizational structure, including all necessary departments and functions and key responsibilities of each.
A31: FALSE | B31: =B30+1 -> 4 | C31: Fit and proper form for founding shareholders | E31: Fit and proper form as set by SAMA for each founding shareholder after it is completed and signed by the founding shareholder, and attested by the person authorized to submit the license application.
A32: FALSE | B32: =B31+1 -> 5 | C32: Detailed feasibility study | E32: Feasibility study, in accordance with the details identified in the license application form. ■ Finance sector analysis covers at least the following: – Market size – Market structure – Supply, demand and market gap (Current) – Supply, demand and market gap (Future) ■ Competitive analysis of key players that includes: – The competitive advantage – Market share – Products offered – Geographical presence ■ Analysis for the key competitors’ customers in the market, including: - Targeted segments of customers - Preferences of customers ■ Financial analysis of the market includes at a minimum: – Projected assets by activity – Projected revenue by activity – Projected profit by activity ■ Outcome of the feasibility study that includes at a minimum: – Rationale for decision to enter the market – Expected market share of supply/demand gap – Key industry opportunities and challenges – Expected customer segments that the Applicant can cater to
B34: =B32+1 -> 6 | C34: Detailed business plan | E34: Business plan for the financing company, in accordance with details identified in the license application form. A:Financing activities requiring a license, and products, and marketing plan. B: Credit policies and procedures C: Projected financial statements and projected annual revenue, expenses, financial margins and targeted growth rates, taking into account capital adequacy and liquidity requirements as required by SAMA D: Projected start-up costs and funding thereof E: Projected ongoing financing of operations F: Branch offices to be established G: Plan and monitoring program for risk management and compliance H: Recruitment and training plan, including the projected number of employees and percentage of Saudi nationals at each department and each organizational level, and the training and qualification programs for employees.
A36: FALSE | B36: =B34+1 -> 7 | C36: Fit and proper form for board members | E36: Fit and proper form as set by SAMA for each board member after it is completed and signed by each board member, and attested by the person authorized to submit the license application.
A37: TRUE | B37: =B36+1 -> 8 | C37: Bank guarantee | E37: Irrevocable bank guarantee should at a minimum be equal to the minimum capital of financing activity or activities to be licensed, according to the form set by SAMA, issued by any local bank for SAMA, and is automatically renewed until the capital is paid in full.
A38: FALSE | B38: 9 | C38: Draft proposed agreements with 3rd parties | E38: Draft agreements and contracts with third parties especially those with related parties or external service providers.

Sheet 1. General details
G1: 1900-02-16
D7: General Details
B8: 1 | C8: =B8+0.1 -> 1.1 | D8: License the Applicant is applying for (select only one): | G8: 00:00:00
F9: Real estate financing | G9: TRUE
F10: Microfinancing | G10: TRUE
F11: ="Other financing -> provide details in question "&C14 -> Other financing -> provide details in question 1.1a | G11: TRUE
C14: =C8&"a" -> 1.1a | D14: Type(s) of financing activities the Applicant will conduct:
B15: FALSE | F15: Financing production assets | G15: FALSE
B16: FALSE | F16: Financing small and medium businesses
B17: TRUE | F17: Finance lease
B18: FALSE | F18: Credit cards finance
B19: FALSE | F19: Consumer finance
B20: FALSE | F20: Other, please detail
C23: =C8+0.1 -> 1.2 | D23: What is the amount of the bank guarantee ?
F24: SAR value
D41: =IF(G41>1,"ERROR, PLEASE SELECT ONLY ONE LICENSE","") ->  | G41: =COUNTIF(G15:G21,TRUE) -> 00:00:00
B60: 2 | D60: Contact details
D61: Contact details of the person we will get in touch with regarding this application. This must be someone who works for the Applicant Company.
C65: =B60+0.1 -> 2.1 | D65: First name
C67: =C65+0.1 -> 2.2 | D67: Middle name(s)
C69: =C67+0.1 -> 2.3 | D69: Surname
C71: =C69+0.1 -> 2.4 | D71: Job title
C73: =C71+0.1 -> 2.5 | D73: Physical business address
C77: =C73+0.1 -> 2.6 | D77: Mailing address
C81: =C77+0.1 -> 2.7 | D81: Phone number
C83: =C81+0.1 -> 2.8 | D83: Mobile number
C85: =C83+0.1 -> 2.9 | D85: Fax number
C87: ="2.10" -> 2.10 | D87: Email address
B119: 3 | D119: Company details
C122: =B119+0.1 -> 3.1 | D122: Proposed company name(s)
D123: (Provide the reserved commercial register name document)
C125: =C122+0.1 -> 3.2 | D125: Proposed physical address of primary business location (if available)
C129: =C125+0.1 -> 3.3 | D129: Phone number (if available)
C131: =C129+0.1 -> 3.4 | D131: Fax number (if available)
C133: =C131+0.1 -> 3.5 | D133: Mailing address (if available)
C137: =C133+0.1 -> 3.6 | D137: Website (if available) | G137: 00:00:00
C145: =C8 -> 1.1 | D145: 3
C146: 3.7 | D146: 0
C147: 3.9 | D147: 2

Sheet 2.0 Business Details Overview
B9: Business details overview
B12: The following section shall include the overall business strategy for the applicant with details on governance, target market, financials and execution milestones and plan.
B15: Themes | C15: S.No. | D15: Topics
B16: Summary | C16: 2.1 | D16: Executive Summary
B17: Governance | C17: 2.2 | D17: Board Committees
B18: Strategy | C18: 2.3 | D18: Target Market
C19: 2.4 | D19: Value Proposition
B20: Financials | C20: 2.5 | D20: Balance Sheet
C21: 2.6 | D21: Income Statement
C22: 2.7 | D22: Cash flow statement
C23: 2.8 | D23: Ratios & Assumptions
B24: Execution | C24: 2.9 | D24: Execution- Operations Plan
C25: 2.10 | D25: Human Resources plan

Sheet 2.1 Executive Summary
B5: Executive summary
B6: This section is designed to include an Executive Summary of the business plan. Use the boxes provided to summarize the business plan based on the instructions offered in the guidelines.
C7: Details | E7: Guidelines
B9: Strategy | E9: This section should include the overall value proposition, competitive advantage, and target market that the Applicant will pursue
B11: Executives | E11: Describe how the executives are suitable for the role and the expertise required to execute the business plan of the company through their commissioned roles and according to their qualifications and expertise
B13: Execution | E13: Describe the most important milestones to achieve in the first 5 years of conducting business. Also describe how and when will different functions be setup
B15: Financials | E15: Provide an overview of 5 year assets, liabilities, revenues, expenses and profits. Also provide a few key ratios to assess future health and performance of the company

Sheet 2.2 Board Committees
C8: Board committees
C9: This section is designed to include all the committees that the company intends to establish over the course of five years. Mention the timeline for establishment of the committee in terms of month and year.
D10: Committee members (candidates) | F10: Committee chair (chairman candidate if available) | H10: Committee responsibilities | J10: Timeline for establishment | L10: Number of annual meetings
C12: Audit committee
C14: Risk management & credit committee
C16: Please write committee name
C18: Please write committee name
C20: Please write committee name
C22: Please write committee name
C24: Please write committee name
C26: Please write committee name
C28: Please write committee name
C30: Please write committee name
C32: Please write committee name
C34: Please write committee name

Sheet 2.3 Target Market
C9: Target market
C10: This section is designed to include description of the targeted market for each financing activity to be licensed (including description for the targeted client segment based on income level, geographical distribution, consumer behaviour and any other classification used by the company). In addition to the description, also provide forecasts of the market size, profits and expected losses. Finally, describe the competitive environment and key challenges that the Applicant expects to face with potential mitigants that the Applicant intends to leverage to combat the challenges
C11: Target Market | E11: Target Market
C12: Target Activities | D12: Target segments
A14: FALSE | X14: Real Estate Finance
A16: FALSE | X16: Micro Finance
A18: FALSE | C18: Financing production assets | X18: Financing Production Assets
A20: FALSE | C20: Financing small and medium businesses | X20: Financing Small and Medium Businesses
A21: FALSE
A22: FALSE | X22: Credit Card Finance
A24: FALSE | X24: Consumer Finance
A26: TRUE | X26: Finance Lease
A28: FALSE | C28: Other activity or activities
C32: Sample - DO NOT FILL
C33: Market Economics | D33: Forecast
D34: Year 1 | E34: Year 2 | F34: Year 3 | G34: Year 4 | H34: Year 5 | I34: CAGR, %
C35: Total market volumes, SAR millions
C36: Average gross profit margin, %
C37: Non performing loans as % of total loans (non payment of instalment greater than 90 days)
C41: Market Structure
D42: Name | J42: Estimated Market Share, %
C43: Key competitor 1
C45: Key competitor 2
C47: Key competitor 3
C49: Explain the important drivers of demand in the activity area like population, income increase etc.
C52: Key market challenges and barriers
D53: Challenge description | J53: Potential mitigants
C55: Challenge 1
C57: Challenge 2
C59: Challenge 3
C61: Challenge 4
C63: Challenge 5
C65: Challenge 6
A68: =A30+1 -> 1900-01-01
C70: Finance Lease
C71: Market Economics | D71: Forecast
D72: Year 1 | E72: Year 2 | F72: Year 3 | G72: Year 4 | H72: Year 5 | I72: CAGR, %
C73: Total market volumes, SAR millions
C74: Average gross profit margin, %
C75: Non performing loans as % of total loans (non payment of instalment greater than 90 days)
C79: Market Structure
D80: Name | J80: Estimated Market Share, %
C81: Key competitor 1
C83: Key competitor 2
C85: Key competitor 3
C87: Explain the important drivers of demand in the activity area like population, income increase etc.
C90: Key market challenges and barriers
D91: Challenge description | J91: Potential mitigants
C93: Challenge 1
C95: Challenge 2
C97: Challenge 3
C99: Challenge 4
C101: Challenge 5
C103: Challenge 6
A106: =A68+1 -> 1900-01-02

Sheet 2.4 Value Proposition
... 2 more rows

Sheet 2.5 Balance Sheet
C8: Balance sheet
C9: Fill the following table including forecast values for the next 5 years
D10: Forecast
C11: SAR | D11: Year 1 | E11: Year 2 | F11: Year 3 | G11: Year 4 | H11: Year 5 | I11: CAGR %
C12: ASSETS
C14: Cash and cash equivalents/bank Balances
C15: Accounts receivables: Current
C16: Prepaid expenses
C17: Assets held for sale
C18: Other short term assets
C19: Please specify others
C20: TOTAL CURRENT ASSETS
C22: Net accounts receivables: long term
C23: Intangible assets
C24: Property Plant and Equipment
C25: Other long term assets
C26: Please specify others
C27: TOTAL LONG TERM ASSETS
C29: TOTAL ASSETS
C31: LIABILITIES
C33: Accounts payable and accruals
C34: Provision for Zakat and income tax
C35: Contingent liabilities
C36: Short term borrowings
C37: Other short term liabilities
C38: Please specify others
C39: TOTAL CURRENT LIABILITIES
C41: Long term debt (syndicated loans, bond issuances etc.)
C42: Employees' end of service benefits
C43: Other fixed liabilities
C44: Please specify others
C45: TOTAL LONG TERM LIABILITIES
C47: TOTAL LIABILITIES
C49: EQUITY
C51: Paid-up share capital
C52: Statutory reserves
C53: Retained Earnings
C54: Other reserves
C55: Please specify others
C56: TOTAL SHAREHOLDERS' EQUITY
C58: TOTAL LIABILITIES AND SHAREHOLDERS' EQUITY
D62: Forecast
C63: SAR | D63: Year 1 | E63: Year 2 | F63: Year 3 | G63: Year 4 | H63: Year 5 | I63: CAGR%
C64: NET ACCOUNTS RECEIVABLES
C66: Accounts receivables: long term
C67: (Provisions for doubtful accounts)
C68: Net Accounts receivables: long term
D72: Forecast
C73: SAR | D73: Year 1 | E73: Year 2 | F73: Year 3 | G73: Year 4 | H73: Year 5 | I73: CAGR %
C74: OFF BALANCE SHEET ITEMS
C76: Provide details about your off balance sheet items
C78: Option like contingent claims
C79: Loan commitments
C80: Options
C81: Standby letters of credit
C82: Non option contingent claims
C83: Futures and forwards
C84: Interest rate swaps
C85: Forex transactions with future settlements
C86: Others
D92: Forecast
C93: SAR | D93: Year 1 | E93: Year 2 | F93: Year 3 | G93: Year 4 | H93: Year 5 | I93: CAGR %
C94: VOLUMES BY FINANCING ACTIVITY
C96: Real estate finance
C97: Micro-finance
C98: Financing production assets
C99: Financing small and medium businesses
C100: Credit card finance
C101: Consumer finance
C102: Financial lease
C103: Others
C104: TOTAL VOLUMES
D107: Forecast
C108: SAR | D108: Year 1 | E108: Year 2 | F108: Year 3 | G108: Year 4 | H108: Year 5 | I108: CAGR %
C109: VOLUMES BY GEOGRAPHICAL REGIONS
C111: Hail
C112: Riyadh
C113: Qasim
C114: Makkah
C115: Madinah
C116: Tabuk
C117: Bahah
C118: Eastern Province (Dammam)
C119: Northern borders
C120: Jawf
C121: Jizan
C122: Asir
C123: Najran
C124: TOTAL VOLUMES
D127: Forecast
C128: SAR | D128: Year 1 | E128: Year 2 | F128: Year 3 | G128: Year 4 | H128: Year 5 | I128: CAGR %
C129: VOLUMES BY INCOME LEVEL OF CUSTOMERS
C131: 5000 SAR or less per month
C132: 5001 to 10000 SAR per month
C133: 10001 to 15000 SAR per month
C134: 15001 to 20000 SAR per month
C135: More than 20000 SAR per month
C136: TOTAL VOLUMES
D142: Forecast
C143: SAR | D143: Year 1 | E143: Year 2 | F143: Year 3 | G143: Year 4 | H143: Year 5 | I143: CAGR1 %
C144: VOLUMES BY SECTORS (FOR SME FINANCE AND FINANCE OF PRODUCTION ASSETS ONLY)
C146: Government and semi government
C147: Banks and other financial institutions
C148: Agriculture and fishing
C149: Manufacturing
C150: Building and construction
C151: Commerce
C152: Transportation and communication
C153: Services
C154: Consumer loans and credit cards
C155: Electricity, water, gas and health services
C156: Others
C157: TOTAL VOLUMES

Sheet 2.6 Income Statement
C8: Income statement
C9: Fill the following table including forecast values for the next 5 years
D10: Forecast
C11: SAR | D11: Year 1 | E11: Year 2 | F11: Year 3 | G11: Year 4 | H11: Year 5 | I11: CAGR %
C13: Income on financing activity
C14: Less
C15: Financing costs
C16: NET FINANCING INCOME
C18: Fee and commission income, net
C19: Other Income
C20: Please specify others
C21: GROSS OPERATING INCOME
C23: Less Operating Expenses
C24: Salaries and employee related expenses
C25: Rent and premises related expenses
C26: Other general and administrative expenses
C27: Charge for Impairment on financing
C28: Depreciation and amortization
C29: NET OPERATING INCOME
C30: Less
C31: Zakat
C32: Income tax
C33: Other expenses, e.g., formation expenses for new companies
C34: Please specify others
C36: NET INCOME

Sheet 2.7 Cash Flow
C8: Cash flow statement
C9: Fill the following table including forecast values for the next 5 years
D10: Forecast
C11: SAR | D11: Year 1 | E11: Year 2 | F11: Year 3 | G11: Year 4 | H11: Year 5 | I11: CAGR %
C12: OPERATING ACTIVITIES
C14: Net income
C15: Adjusted for:
C16: Depreciation and amortization
C17: (Gain) / loss on disposal of property & equipment
C18: Impairment charges on financing and other
C19: Other adjustments
C20: Please specify others
C21: Operating income before changes in operating assets and liabilities
C23: Changes in operating assets and liabilities:
C24: Balances with banks
C25: Financing
C26: Other assets
C27: Due to banks and other financial institutions
C28: Cash used in operations
C29: Other liabilities
C30: Please specify others
C31: NET CASH GENERATED/ USED IN OPERATING ACTIVITIES
C33: INVESTING ACTIVITIES
C35: Purchase of property and equipment
C36: Proceeds from the sale of property and equipment
C37: Acquisition of investment securities
C38: Proceeds from sale of investment securities
C39: Other investing activities
C40: NET CASH USED IN INVESTING ACTIVITIES
C42: FINANCING ACTIVITIES
C43: Due to related parties
C44: Borrowings from banks and other financial institutions
C45: Other financing activities
C46: Dividends paid
C47: NET CASH USED IN/GENERATED FROM FINANCING ACTIVITIES
D51: Forecast
C52: SAR | D52: Year 1 | E52: Year 2 | F52: Year 3 | G52: Year 4 | H52: Year 5 | I52: CAGR %
C53: START UP COST & CAPITAL EXPENDITURE
C55: Purchase of property
C56: Repair and maintenance
C57: Deposits for utility companies
C58: IT infrastructure
C59: Advertising and marketing costs
C60: Insurance fees
C61: Administrative and general expenses
C62: Purchase of vehicles
C63: Professional fees paid to legal experts, accountants, website designer, etc.
C64: License fees
C65: Wages and benefits paid to employees
C66: Please specify others

Sheet 2.8 Ratios & Assumptions
C8: Ratios & Assumptions
C9: Fill the following table including forecast values for the next 5 years
D10: Forecast
D11: Year 1 | E11: Year 2 | F11: Year 3 | G11: Year 4 | H11: Year 5 | I11: CAGR%
C12: PROFITABILITY RATIOS
C14: Leverage
C15: ROAE (Return on average equity)
C16: Gross margins
C17: Operating margins
C18: Net profit margins
C19: Net funded income/total financing
C20: Return on average assets
C21: Annual percentage rate
C24: COST RATIOS
C26: Cost of funding/total liabilities
C27: Operating cost/operating income
C28: Non performing loans as percent of gross loans (overall)
C29: By real estate finance
C30: By microfinance
C31: By financing production assets
C32: By financing SME
C33: By credit card finance
C34: By consumer finance
C35: By financial lease
C36: By other activities
C39: FINANCIAL RATIOS
C41: Average LTV (for real estate only)
C42: Short term liquidity ratio for 30 days (liquidity ratio)
C43: Long term liquidity ratio (liabilities ratio)
C44: Long term liquidity ratio (coverage ratio)
D48: Forecast | J48: Source of Assumptions
D49: Year 1 | E49: Year 2 | F49: Year 3 | G49: Year 4 | H49: Year 5 | I49: CAGR %
C50: MARKET ASSUMPTIONS
C52: Market share of company
C53: SAIBOR assumptions
C54: Others:
C55: Assumption 1
C56: Assumption 2
C57: Assumption 3
C58: Assumption 4
C59: Assumption 5
D62: Forecast | J62: Source of Assumptions
D63: Year 1 | E63: Year 2 | F63: Year 3 | G63: Year 4 | H63: Year 5 | I63: CAGR %
C64: CUSTOMERS BY FINANCING ACTIVITY
C65: Total customers
C66: By real estate finance
C67: By microfinance
C68: By financing production assets
C69: By financing SME
C70: By credit card finance
C71: By consumer finance
C72: By financial lease
C73: By other activities

Sheet Ratio definitions
C8: Ratios definitions
D10: Definition
C11: PROFITABILITY RATIOS
C13: Leverage | D13: Leverage = Total assets/Shareholders' equity
C14: ROAE (Return On Average Equity) | D14: ROAE = Net income/Average shareholders' equity
C15: Gross margins | D15: Gross margin = Gross profit/ Revenues
C16: Operating margins | D16: Operating margin = Operating income/ Revenues
C17: Net profit margins | D17: Net profit margin = Net income/ Revenues
C18: Net funded income/Total financing | D18: Net funded income/Total financing = Net funded income / total granted finance
C19: Annual percentage rate | D19: Annual percentage rate = Annual estimated ratio calculated according to the provisions of Article 81 of bylaws of Financing Companies Control System
C22: COST RATIOS
C24: Cost of funding / Total liabilities | D24: Cost of funding / Total liabilities = Cost of funding on the company / Total liabilities
C25: Operating cost / Operating income | D25: Operating cost / Operating income = Operating cost / Operating income
C26: Non Performing loans as % of gross loans overall | D26: Non performing loans overall = Value of non performing loans overall/ Value of total loans
C27: By Real estate finance | D27: Non performing loans in Real estate= Value of non performing loans in Real estate / Value of total loans in Real estate
C28: By Microfinance | D28: Non performing loans in MF= Value of non performing loans in microfinance / Value of total loans in microfinance
C29: By Financing production assets | D29: Non performing loans in Fin. Prod. Assets= Value of non performing in financing production assets' loans / Value of total loans in financing production assets
C30: By Financing SME | D30: Non performing loans in SME= Value of non performing loans in SME / Value of total loans in SME
C31: By Credit card finance | D31: Non performing loans in Credit card finance= Value of non performing loans in credit cards / Value of total loans in Credit cards
C32: By Consumer finance | D32: Non performing loans in Consumer Fin.= Value of non performing loans in customer finance / Value of total loans in customer finance
C33: By Finance lease | D33: Non performing loans in finance lease= Value of non performing loans in finance lease/ Value of total loans in finance lease
C36: FINANCIAL RATIOS
C38: Average loan-to-value (LTV) (Real estate finance) | D38: Loan to value ratio= Value of loan underwritten/ Value of asset
C39: Short term liquidity ratio for 30 days (liquidity ratio) | D39: Current ratio= Current assets / Current liabilities
C40: Long term liquidity ratio (liability ratio) | D40: Liabilities ratio = Long term debt / (Equity + long term debt)
C41: Long term liquidity ratio (Cover ratio) | D41: Interest cover ratio = Net profits before interests, taxes and Zakat paid / Total funds paid

Sheet 2.9 Execution-Operations Plan
C9: Execution-Operations Plan
C10: This section is designed to include details of the operations plan and timeline to implementation of the different operations
A11: FALSE | C11: Risk Management | Q11: TRUE
C13: What kind of processes and tools will the Applicant use for managing these risks?
C14: Credit Risk
C16: Market Risk
C18: Term Cost Rate Risk
C20: Exchange Rate Risk
C22: Liquidity Risk
C24: Operational Risk
C26: Country Risk
C28: Legal Risk
C30: Reputation Risk
C32: Technology Risk
C34: Mention the details of any insurance related to any of the above mentioned risks or any other risks.
C38: Marketing and Sales
C40: Key sources of customer acquisition
C42: Description of Primary marketing mediums and channels
C44: Budget for marketing for 1st year, SAR
C46: Please attach a detailed marketing plan with the form
C50: IT Infrastructure
C51: What are the core systems that the Applicant will install?
F52: System
A54: FALSE | C54: Risk Management Systems
A56: FALSE | C56: Enterprise wide General Ledger
A58: FALSE | C58: Data Warehousing
A60: FALSE | C60: Information Security
A62: FALSE | C62: Customer Relationship Management
A64: FALSE | C64: Disaster Recovery Solutions
A66: FALSE | C66: Remote Payment Capabilities
C68: Specify any other core systems you will use in the future
C72: Collections Plan
C74: Financial Activity | F74: In House / Outsourced
C76: Real estate finance
C78: Micro-finance
C80: Financing production assets
C82: Financing small and medium businesses
C84: Credit card finance
C86: Consumer finance
C88: Financial lease
C91: Collections timeline: Provide different steps taken by bank according to the time of default: 1-30 days of non payment, 30-90 days of non payment and more than 90 days of non payment
C93: Name of the vendor (if any)
C111: Back Office Operations
F113: Credit Operations | H113: Credit Administration | J113: Customer services | L113: Collection | N113: Portfolio management
C115: Which of these operations does the applicant plan to establish?
C117: Will the applicant have detailed policy and process guidelines?
C119: How many people will be allocated to the function over 5 years?
C124: Timeline
C126: Provide launch dates for the financial activity (wherever applicable) :
C128: Real estate finance | I128: Credit card finance
C130: Micro-finance | I130: Consumer finance
C132: Financing production assets | I132: Finance lease
C134: Financing small and medium businesses | I134: Other activities
C138: Sharia Committee
C140: Sharia committee members names
C142: Chairman
C144: Committee responsibilities and roles
C146: Plan of financing activities revision by the Sharia committee
C148: Time line for the Sharia committee to review financing products submitted by the company
C151: Funding strategy
C153: Explain the funding strategy with details of different sources of funding
C155: Planned time for the Applicant to offer IPO
C157: Details of any finance the company may receive from foreign entity or with foreign currency

Sheet 2.10 Human Resources Plan
C6: Human Resources Plan
C7: This section is designed to include details of human resources plan for the next 5 years
C8: Human Resources Plan
D9: Year 1 | F9: Year 2 | H9: Year 3 | J9: Year 4 | L9: Year 5 | N9: CAGR
D10: No. of Employees | E10: Saudi-zation % | F10: No. of Employees | G10: Saudi-zation % | H10: No. of Employees | I10: Saudi-zation % | J10: No. of Employees | K10: Saudi-zation % | L10: No. of Employees | M10: Saudi-zation % | N10: No. of Employees | O10: Saudi-zation %
C11: Overall
C12: By Function
C13: Sales
C14: Risk
C15: Internal Audit
C16: Finance
C17: Treasury & Accounting
C18: HR
C19: Compliance
C20: IT
C21: Operations
C22: Other departments
C23: By Level
C24: First line reporting directly to CEO
C25: Second line reporting to First line
C26: Third line reporting to Second line
C31: This section is designed to include details about human resources plan for the next 5 years
C32: Training Program
C34: Average number of training days per employee (per annum)
C36: Budget for training in first year, SAR
C38: Technical Trainings
C40: Name of courses offered | E40: Mention target employees level and functions
C62: Other Trainings
C64: Name of courses offered | E64: Mention target employees level and functions

Sheet 3. Acknowledgement
C6: Acknowledgement
C7: This acknowledgement should be signed by the company's founding shareholders or their representative under an authenticated authorization.
C9: I hereby acknowledge that I have read the Law on the Supervision of Finance Companies, the Financial Lease Law, the Real Estate Finance Law and other related laws and regulations in the Kingdom of Saudi Arabia. I am aware that it is a sanctionable offence under the terms of the Law on the Supervision of Finance Companies and other laws to knowingly or recklessly provide to SAMA or any other natural or juristic person any information which is false or misleading or inaccurate or incomplete in connection with the conduct of business in Saudi Arabia.
C19: I declare that I'm aware of the information provided in this application and acknowledge that the documents, information and data provided in this application and provided as a supplement to the application is complete and accurate and that there is no other relevant significant documents and information which is not disclosed in the license application. I declare that the documents and information provided in the softcopy of the application is identical to the documents and information provided in the hardcopy of documents and forms of the application, including the information provided in "Business Plan Details" section, which is identical to the submitted business plan.
C29: The License Applicant declares that it will provide SAMA immediately with any information or documents it considers necessary for the purpose of evaluating the licensee application.
C33: I declare that I and the License Applicant are aware that SAMA may reject the license application or revoke the License if it is found that the applicant has submitted false information or failed to disclose material information that should have been provided for licensing purposes.
C38: I undertake that the License Applicant will notify SAMA of any information or material changes affecting the completeness or accuracy of the information, forms and documents within a maximum period of 30 business days from the day of obtaining the information or the occurrence of the change. In case of not complying with this, the applicant shall be subject to any penalties stipulated in relevant laws.
C41: Name:
C42: Signature:
C43: Position:
C44: Date:
E45: Stamp

Sheet 4. Fit and proper status
B6: Fit and proper status
B7: This section is designed to include details of all founding shareholders, Company board
B8: and board committees membership candidates, as well as top management positions
B9: candidates. The fit and proper form should be attached for each of them. Knowing that
B10: the form can be downloaded from the SAMA website (www.sama.gov.sa).
B12: First: Enter names and details of all company founding shareholders, and indicate whether the fit and proper form is submitted for every founding shareholder or not.
A14: S.No. | B14: Shareholder name | C14: Nationality | D14: Shareholding Percentage | E14: Has Fit and Proper form been attached after completion? | F14: Reason for not attaching Fit and Proper form
A15: 1
A16: 2 | I16: Shareholder - individual
A17: 3 | I17: Shareholder - legal entity
A18: 4 | I18: Board member
A19: 5 | I19: Senior manager
A20: 6
A21: 7
A22: 8
A23: 9
A24: 10
A25: 11
A26: 12
A27: 13
A28: 14
A29: 15
A30: 16
A31: 17
A32: 18
A33: 19
A34: 20
A35: 21
A36: 22
A37: 23
A38: 24
A39: 25
A40: 26
A41: 27
A42: 28
A43: 29
A44: 30
A45: 31
A46: 32
A47: 33
A48: 34
A49: 35
A50: 36
A51: 37
A52: 38
A53: 39
A54: 40
A55: 41
A56: 42
A57: 43
A58: 44
A59: 45
A60: 46
A61: 47
A62: 48
A63: 49
A64: 50
A65: 51
A66: 52
A67: 53
A68: 54
A69: 55
A70: 56
A71: 57
A72: 58
A73: 59
A74: 60
A75: 61
A76: 62
A77: 63
A78: 64
A79: 65
A80: 66
A81: 67
A82: 68
A83: 69
A84: 70
A85: 71
A86: 72
A87: 73
A88: 74
A89: 75
A90: 76
A91: 77
A92: 78
A93: 79
A94: 80
A95: 81
A96: 82
A97: 83
A98: 84
A99: 85
A100: 86
A101: 87
A102: 88
A103: 89
A104: 90
A105: 91
A106: 92
A107: 93
A108: 94
A109: 95
A110: 96
A111: 97
A112: 98
A113: 99
A114: 100
B116: Second: Enter names and details of all board and board committees membership candidates, and indicate whether the fit and proper form is submitted or not.
A119: S.No. | B119: Member name | C119: Nationality | D119: Membership type (Board Member or Committee Member) | E119: Has Fit and Proper form been attached after completion? | F119: Reason for not attaching Fit and Proper form
A120: 1
A121: 2
A122: 3
A123: 4
A124: 5
A125: 6
A126: 7
A127: 8
A128: 9
A129: 10
A130: 11
A131: 12
A132: 13
A133: 14
A134: 15
A135: 16
A136: 17
A137: 18
A138: 19
A139: 20
A140: 21
A141: 22
A142: 23
A143: 24
A144: 25
A145: 26
A146: 27
A147: 28
A148: 29
A149: 30
B151: Third: Enter names and details of all top management positions candidate (including positions of the Managing Director, CEO and General Manager and their deputies, and the Finance Manager, key departments managers or their deputies, monitoring and audit jobs managers, such as internal audit, risk management and compliance, or their deputies), and indicate whether the fit and proper form is submitted for every candidate or not
A154: S.No. | B154: Member name | C154: Nationality | D154: Membership type (Board Member or Committee Member) | E154: Has Fit and Proper form been attached after completion? | F154: Reason for not attaching Fit and Proper form
A155: 1
A156: 2
A157: 3
A158: 4
A159: 5
A160: 6
A161: 7
A162: 8
A163: 9
A164: 10
A165: 11
A166: 12
A167: 13
A168: 14
A169: 15
A170: 16
A171: 17
A172: 18
A173: 19
A174: 20
A175: 21
A176: 22
A177: 23
A178: 24
A179: 25
A180: 26
A181: 27
A182: 28
A183: 29
A184: 30

Sheet 5. Attachments
B7: Attachments
B9: The following table must be filled in with all forms and Documents submitted with the application, except fit and proper forms mentioned in "fit and proper status" section. Print as many copies of this table as required in case the Applicant needs more space.
A12: # | B12: Attachment | C12: Number of pages in attachment
A13: 1
A14: =A13+1 -> 2
A15: 3
A16: 4
A17: 5
A18: 6
A19: 7
A20: 8
A21: 9
A22: 10
A23: 11
A24: 12
A25: 13
A26: 14
A27: 15
A28: 16
A29: 17
A30: 18
A31: 19
A32: 20
A33: 21
A34: 22
A35: 23
A36: 24
A37: 25
A38: 26
A39: 27
A40: 28
A41: 29
A42: 30
A43: 31
A44: 32
A45: 33
A46: =A45+1 -> 34
A47: 35
A48: 36
A49: 37
A50: 38
A51: 39
A52: 40
A53: 41
A54: 42
A55: 43
A56: 44
A57: 45
A58: 46
A59: 47
A60: 48
A61: 49
A62: 50
A63: 51
A64: 52
A65: 53
A66: 54
A67: 55
A68: 56
A69: 57
A70: 58
A71: 59
A72: 60
A73: 61
A74: 62
A75: 63
A76: 64
A77: 65
A78: =A77+1 -> 66
A79: 67
A80: 68
A81: 69
A82: 70
A83: 71
A84: 72
A85: 73
A86: 74
A87: 75
A88: 76
A89: 77
A90: 78
A91: 79
A92: 80
A93: 81
A94: 82
A95: 83
A96: 84
A97: 85
A98: 86
A99: 87
A100: 88
A101: 89
A102: 90
A103: 91
A104: 92
A105: 93
A106: 94
A107: 95
A108: 96
A109: 97
A110: 98
A111: 99
A112: 100
B114: END OF FORM
